lending/lending_fUSD_20250706
["ID","MTS","AMOUNT","RATE_DAILY","PERIOD"]
[369937254,1751788262261,-3880.3,0.0001943,2]
[369937256,1751788262272,-152.85550246,0.00019436,2]
[369937258,1751788262281,-150.0,0.00019437,2]
[369937260,1751788262290,-1168.09013264,0.00019443,2]
[369937262,1751788262299,-500.0,0.00019447,2]
[369937264,1751788262309,-877.92,0.00019447,2]
[369937266,1751788262318,-721.0219008,0.00019447,2]
[369937268,1751788262327,-200.0,0.00019448,2]
[369937270,1751788262337,-134.04250977,0.00019448,2]
[369937307,1751788262777,-151.0,0.000189,2]
[369937309,1751788262787,-644.0,0.00019178,2]
[369937311,1751788262796,-296.34225089,0.00019178,2]
[369937320,1751788262874,-163.65774911,0.00019178,2]
[369937322,1751788262884,-958.84,0.00019178,2]
[369937324,1751788262893,-460.0,0.00019178,2]
[369937326,1751788262903,-460.0,0.00019178,2]
[369937328,1751788262912,-460.0,0.00019178,2]
[369937330,1751788262921,-419.7793013,0.00019448,2]
[369937409,1751788517718,297.66,0.00013699,2]
[369937448,1751789137465,-203.5675578,0.00016064,2]
[369937449,1751789137492,-996.4324422,0.00016163,2]
[369937516,1751789432283,-509.0,0.00015979,2]
[369937517,1751789432292,-555.0,0.00015979,2]
[369937518,1751789432302,-300.0,0.00016163,2]
[369937519,1751789432311,-204.0,0.00016163,2]
[369937520,1751789432320,-1100.0,0.00016164,2]
[369937521,1751789432329,-1200.0,0.00016164,2]
[369937522,1751789432339,-500.0,0.00016164,2]
[369937523,1751789432348,-2500.0,0.00016568,2]
[369937524,1751789432357,-12507.40832164,0.00017,2]
[369937525,1751789432366,-1100.0,0.00017534,2]
[369937526,1751789432375,-1200.0,0.00017534,2]
[369937527,1751789432386,-2500.0,0.00017577,2]
[369937528,1751789432397,-2500.0,0.00017577,2]
[369937529,1751789432407,-288.58492033,0.00017577,2]
[369937530,1751789432419,-2211.41507967,0.00017577,2]
[369937531,1751789432428,-151.0,0.00017622,2]
[369937532,1751789432438,-151.0,0.00017622,2]
[369937533,1751789432449,-151.0,0.00017622,2]
[369937534,1751789432460,-151.0,0.00017622,2]
[369937535,1751789432469,-151.0,0.00017622,2]
[369937536,1751789432479,-151.0,0.00017622,2]
[369937537,1751789432488,-5.22954815,0.00017622,2]
[369937538,1751789432500,-145.77045185,0.00017622,2]
[369937539,1751789432511,-151.0,0.00017622,2]
[369937540,1751789432521,-151.0,0.00017622,2]
[369937541,1751789432530,-166.0,0.00017631,2]
[369937542,1751789432541,-1019.28468478,0.00017632,2]
[369937543,1751789432553,-1450.00000001,0.00017632,2]
[369937544,1751789432565,-1670.81080475,0.00017632,2]
[369937545,1751789432580,-5842.68246095,0.00017632,2]
[369937546,1751789432595,-832.45139217,0.00017632,2]
[369937547,1751789432610,-528.54860783,0.00017632,2]
[369937549,1751789432621,-3120.47204951,0.00017632,2]
[369937550,1751789432631,-1051.79,0.00017634,2]
[369937552,1751789432642,-200.0,0.00017669,7]
[369937554,1751789432652,-420.0,0.00017669,2]
[369937556,1751789432661,-206.2,0.0001769,2]
[369937558,1751789432672,-1000.0,0.00017691,2]
[369937560,1751789432682,-1011.56,0.00017719,2]
[369937562,1751789432691,-1427.65904746,0.000179,2]
[369937564,1751789432701,-1492.6,0.00018,2]
[369937566,1751789432711,-645.0,0.000181,2]
[369937568,1751789432720,-805.86,0.00018165,2]
[369937570,1751789432729,-1455.86,0.00018184,2]
[369937572,1751789432738,-381.47284175,0.000183,2]
[369937574,1751789432748,-1888.81044319,0.000183,2]
[369937576,1751789432757,-300.0,0.000183,2]
[369937578,1751789432766,-259.52465551,0.000183,2]
[369937580,1751789432775,-207.4,0.000183,2]
[369937582,1751789432786,-1427.65904742,0.00018555,2]
[369937584,1751789432795,-632.0,0.0001859,2]
[369937586,1751789432804,-1100.0,0.0001863,2]
[369937588,1751789432814,-1200.0,0.0001863,2]
[369937590,1751789432823,-355.88,0.0001863,2]
[369937592,1751789432832,-1645.734,0.00018674,2]
[369937594,1751789432841,-859.0,0.00018674,2]
[369937596,1751789432851,-4110.0,0.00018674,2]
[369937598,1751789432860,-502.51271943,0.00018681,2]
[369937600,1751789432869,-400.0,0.000187,6]
[369937602,1751789432879,-900.0,0.000188,6]
[369937604,1751789432888,-207.72,0.000189,2]
[369937606,1751789432897,-1300.0,0.000189,6]
[369937608,1751789432906,-500.0,0.00018904,2]
[369937610,1751789432915,-228.882,0.00018978,2]
[369937612,1751789432924,-349.6,0.00018993,7]
[369937614,1751789432933,-207.72,0.00019,2]
[369937616,1751789432944,-207.72,0.00019,2]
[369937618,1751789432955,-207.72,0.00019,2]
[369937620,1751789432964,-207.72,0.00019,2]
[369937622,1751789432973,-3983.0,0.00019,2]
[369937624,1751789432984,-156.487346,0.00019059,2]
[369937626,1751789432993,-619.0,0.0001907,2]
[369937628,1751789433002,-765.02148631,0.00019078,2]
[369937630,1751789433011,-171.64856419,0.00019078,2]
[369937632,1751789433021,-152.85550246,0.00019078,2]
[369937634,1751789433030,-161.97536897,0.00019078,2]
[369937636,1751789433039,-25874.71704996,0.00019078,2]
[369937648,1751789433383,-2801.52505004,0.00019078,2]
[369937650,1751789433393,-5000.0,0.00019078,2]
[369937651,1751789433402,-528.44117912,0.00019078,2]
[369937652,1751789433414,-775.28092088,0.00019078,2]
[369937653,1751789433423,-1147.93697666,0.00019078,2]
[369937654,1751789433543,-144.52652334,0.00019078,2]
[369937655,1751789433553,-456.0,0.00019101,2]
[369937656,1751789433563,-30.75441069,0.00019145,2]
[369937657,1751789433574,-490.56126682,0.00019145,2]
[369937658,1751789433589,-311.88590251,0.00019145,2]
[369937659,1751789433604,-1261.02041998,0.00019145,2]
[369937660,1751789433613,-172.374,0.00019145,2]
[369937661,1751789433622,-1840.81,0.0001915,2]
[369937662,1751789433632,-734.39693856,0.00019152,2]
[369937663,1751789433644,-606.54860783,0.00019152,2]
[369937664,1751789433657,-499.85445361,0.00019152,2]
[369937665,1751789433666,-106.24184129,0.00019155,2]
[369937666,1751789433679,-242.75815871,0.00019155,2]
[369937667,1751789433688,-264.46514139,0.00019161,2]
[369937668,1751789433700,-84.53485861,0.00019161,2]
[369937669,1751789433709,-246.17,0.00019168,2]
[369937670,1751789433719,-765.02148623,0.00019169,2]
[369937671,1751789433728,-66.27365516,0.00019173,2]
[369937672,1751789433758,-301.67603083,0.00019173,2]
[369937673,1751789433767,-500.0,0.00019173,2]
[369937674,1751789433776,-500.0,0.00019173,2]
[369937675,1751789433786,-160.22418711,0.00019173,2]
[369937676,1751789433795,-500.0,0.00019173,2]
[369937677,1751789433804,-500.28428397,0.00019173,2]
[369937678,1751789433814,-500.0,0.00019173,2]
[369937679,1751789433824,-502.32457066,0.00019173,2]
[369937680,1751789433833,-500.0,0.00019173,2]
[369937681,1751789433842,-500.0,0.00019177,2]
[369937682,1751789433852,-500.0,0.00019177,2]
[369937683,1751789433862,-462.79760788,0.00019177,2]
[369937684,1751789433871,-490.0,0.00019178,2]
[369937685,1751789433881,-460.0,0.00019178,2]
[369937686,1751789433891,-460.0,0.00019178,2]
[369937687,1751789433901,-460.0,0.00019178,2]
[369937688,1751789433910,-460.0,0.00019178,2]
[369937689,1751789433920,-460.0,0.00019178,2]
[369937690,1751789433930,-460.0,0.00019178,2]
[369937691,1751789433939,-460.0,0.00019178,2]
[369937692,1751789433949,-338.73292026,0.00019178,2]
[369937693,1751789433962,-121.26707974,0.00019178,2]
[369937694,1751789433971,-460.0,0.00019178,2]
[369937695,1751789433981,-208.99074225,0.00019178,2]
[369937697,1751789438623,-2627.64368385,0.00019078,2]
[369937698,1751789438632,-500.0,0.00019173,2]
[369937699,1751789438642,-251.00925775,0.00019178,2]
[369937700,1751789438652,-460.0,0.00019178,2]
[369937701,1751789438662,-460.0,0.00019178,2]
[369937702,1751789438671,-460.0,0.00019178,2]
[369937703,1751789438681,-460.0,0.00019178,2]
[369937704,1751789438689,-460.0,0.00019178,2]
[369937705,1751789438698,-402.62111,0.00019178,2]
[369937706,1751789438711,-93.42223097,0.00019178,2]
[369937707,1751789438719,-542.77032984,0.00019178,2]
[369937708,1751789438728,-493.55688432,0.00019178,2]
[369937709,1751789438738,-191.45150646,0.00019178,2]
[369937710,1751789438747,-133.12159191,0.00019178,2]
[369937711,1751789438759,-359.84890435,0.00019178,2]
[369937712,1751789438768,-495.41888242,0.00019178,2]
[369937713,1751789438778,-61.07221323,0.00019178,2]
[369937714,1751789438832,-398.92778677,0.00019178,2]
[369937715,1751789438841,-58.02220927,0.00019178,2]
[369937716,1751789438853,-435.64933837,0.00019178,2]
[369937717,1751789438865,-460.0,0.00019178,2]
[369937718,1751789438876,-460.0,0.00019178,2]
[369937719,1751789438887,-460.0,0.00019178,2]
[369937720,1751789438896,-185.23850583,0.00019178,2]
[369937721,1751789438910,-304.76149417,0.00019178,2]
[369937722,1751789438919,-492.88820657,0.00019178,2]
[369937724,1751789438928,-460.0,0.00019178,2]
[369937726,1751789438938,-490.0,0.00019178,2]
[369937728,1751789438949,-490.0,0.00019178,2]
[369937730,1751789438958,-492.88873602,0.00019178,2]
[369937731,1751789438968,-494.63084835,0.00019178,2]
[369937733,1751789438977,-374.5339688,0.00019178,2]
[369937735,1751789438987,-460.0,0.00019178,2]
[369937737,1751789438996,-460.0,0.00019178,2]
[369937739,1751789439006,-460.0,0.00019178,2]
[369937741,1751789439015,-460.0,0.00019178,2]
[369937743,1751789439024,-460.0,0.00019178,2]
[369937745,1751789439034,-460.0,0.00019178,2]
[369937747,1751789439042,-460.0,0.00019178,2]
[369937749,1751789439052,-460.0,0.00019178,2]
[369937751,1751789439061,-460.0,0.00019178,2]
[369937753,1751789439070,-460.0,0.00019178,2]
[369937755,1751789439079,-460.0,0.00019178,2]
[369937757,1751789439089,-460.0,0.00019178,2]
[369937759,1751789439098,-460.0,0.00019178,2]
[369937761,1751789439107,-256.79851694,0.00019178,2]
[369937763,1751789439116,-460.0,0.00019178,2]
[369937765,1751789439125,-158.41290722,0.00019178,2]
[369937778,1751789439240,-341.58709278,0.00019178,2]
[369937780,1751789439250,-460.0,0.00019178,2]
[369937783,1751789439260,-460.0,0.00019178,2]
[369937784,1751789439269,-460.0,0.00019178,2]
[369937786,1751789439279,-460.0,0.00019178,2]
[369937788,1751789439289,-460.0,0.00019178,2]
[369937790,1751789439299,-460.0,0.00019178,2]
[369937792,1751789439308,-460.0,0.00019178,2]
[369937794,1751789439316,-144.67758053,0.00019178,2]
[369937796,1751789439329,-315.32241947,0.00019178,2]
[369937798,1751789439338,-298.11530622,0.00019178,2]
[369937801,1751789439350,-161.88469378,0.00019178,2]
[369937803,1751789439359,-460.0,0.00019178,2]
[369937805,1751789439368,-460.0,0.00019178,2]
[369937807,1751789439377,-438.20629332,0.00019178,2]
[369937936,1751789440677,-21.79370668,0.00019178,2]
[369937937,1751789440686,-450.93366625,0.00019178,2]
[369937938,1751789440698,-9.06633375,0.00019178,2]
[369937939,1751789440707,-460.0,0.00019178,2]
[369937940,1751789440716,-259.5849077,0.00019178,2]
[369937941,1751789440727,-200.4150923,0.00019178,2]
[369937942,1751789440736,-460.0,0.00019178,2]
[369937943,1751789440745,-460.0,0.00019178,2]
[369937945,1751789440754,-71.27485776,0.00019178,2]
[369937954,1751789440837,-388.72514224,0.00019178,2]
[369937956,1751789440847,-460.0,0.00019178,2]
[369937958,1751789440856,-460.0,0.00019178,2]
[369937960,1751789440865,-460.0,0.00019178,2]
[369937962,1751789440874,-460.0,0.00019178,2]
[369937964,1751789440883,-460.0,0.00019178,2]
[369937966,1751789440892,-460.0,0.00019178,2]
[369937968,1751789440902,-265.08180313,0.00019178,2]
[369937975,1751789440955,-194.91819687,0.00019178,2]
[369937977,1751789440964,-460.0,0.00019178,2]
[369937979,1751789440973,-460.0,0.00019178,2]
[369937981,1751789440982,-199.96202383,0.00019178,2]
[369937990,1751789441063,-260.03797617,0.00019178,2]
[369937992,1751789441072,-460.0,0.00019178,2]
[369937994,1751789441081,-460.0,0.00019178,2]
[369937996,1751789441090,-460.0,0.00019178,2]
[369937998,1751789441099,-425.21898268,0.00019178,2]
[369938000,1751789441111,-74.78101732,0.00019178,2]
[369938002,1751789441120,-500.0,0.00019178,2]
[369938004,1751789441129,-500.0,0.00019178,2]
[369938006,1751789441139,-500.0,0.00019178,2]
[369938008,1751789441148,-500.0,0.00019178,2]
[369938010,1751789441157,-500.0,0.00019178,2]
[369938012,1751789441166,-460.0,0.00019178,2]
[369938014,1751789441175,-460.0,0.00019178,2]
[369938016,1751789441185,-460.0,0.00019178,2]
[369938044,1751789441442,-460.0,0.00019178,2]
[369938046,1751789441453,-460.0,0.00019178,2]
[369938048,1751789441463,-460.0,0.00019178,2]
[369938050,1751789441472,-460.0,0.00019178,2]
[369938052,1751789441482,-460.0,0.00019178,2]
[369938054,1751789441491,-460.0,0.00019178,2]
[369938056,1751789441500,-460.0,0.00019178,2]
[369938058,1751789441510,-460.0,0.00019178,2]
[369938060,1751789441519,-460.0,0.00019178,2]
[369938062,1751789441528,-460.0,0.00019178,2]
[369938064,1751789441538,-460.0,0.00019178,2]
[369938066,1751789441547,-460.0,0.00019178,2]
[369938068,1751789441556,-460.0,0.00019178,2]
[369938070,1751789441565,-460.0,0.00019178,2]
[369938072,1751789441574,-460.0,0.00019178,2]
[369938074,1751789441584,-460.0,0.00019178,2]
[369938076,1751789441597,-460.0,0.00019178,2]
[369938078,1751789441607,-460.0,0.00019178,2]
[369938080,1751789441616,-460.0,0.00019178,2]
[369938081,1751789441625,-492.79,0.00019178,2]
[369938084,1751789441636,-460.0,0.00019178,2]
[369938086,1751789441645,-460.0,0.00019178,2]
[369938088,1751789441655,-460.0,0.00019178,2]
[369938090,1751789441667,-460.0,0.00019178,2]
[369938092,1751789441676,-460.0,0.00019178,2]
[369938093,1751789441686,-460.0,0.00019178,2]
[369938096,1751789441696,-460.0,0.00019178,2]
[369938098,1751789441705,-460.0,0.00019178,2]
[369938099,1751789441714,-460.0,0.00019178,2]
[369938102,1751789441724,-460.0,0.00019178,2]
[369938103,1751789441733,-460.0,0.00019178,2]
[369938106,1751789441742,-460.0,0.00019178,2]
[369938108,1751789441754,-537.93774761,0.00019178,2]
[369938110,1751789441763,-460.0,0.00019178,2]
[369938112,1751789441772,-460.0,0.00019178,2]
[369938114,1751789441781,-460.0,0.00019178,2]
[369938115,1751789441790,-561.56,0.00019178,2]
[369938118,1751789441800,-460.0,0.00019178,2]
[369938120,1751789441809,-460.0,0.00019178,2]
[369938122,1751789441819,-523.76004966,0.00019178,2]
[369938124,1751789441828,-151.0,0.00019178,2]
[369938126,1751789441839,-460.0,0.00019178,2]
[369938128,1751789441848,-460.0,0.00019178,2]
[369938130,1751789441857,-460.0,0.00019178,2]
[369938131,1751789441869,-460.0,0.00019178,2]
[369938133,1751789441878,-251.75263299,0.00019178,2]
[369938135,1751789441887,-460.0,0.00019178,2]
[369938138,1751789441897,-460.0,0.00019178,2]
[369938140,1751789441907,-460.0,0.00019178,2]
[369938142,1751789441916,-460.0,0.00019178,2]
[369938143,1751789441926,-460.0,0.00019178,2]
[369938146,1751789441936,-460.0,0.00019178,2]
[369938147,1751789441946,-460.0,0.00019178,2]
[369938150,1751789441956,-202.26083267,0.00019178,2]
[369938151,1751789441967,-460.0,0.00019178,2]
[369938154,1751789441977,-460.0,0.00019178,2]
[369938156,1751789441986,-460.0,0.00019178,2]
[369938158,1751789441995,-460.0,0.00019178,2]
[369938159,1751789442005,-460.0,0.00019178,2]
[369938162,1751789442015,-460.0,0.00019178,2]
[369938164,1751789442024,-460.0,0.00019178,2]
[369938166,1751789442033,-460.0,0.00019178,2]
[369938168,1751789442042,-460.0,0.00019178,2]
[369938170,1751789442051,-460.0,0.00019178,2]
[369938172,1751789442060,-582.79,0.00019178,2]
[369938174,1751789442069,-460.0,0.00019178,2]
[369938176,1751789442079,-460.0,0.00019178,2]
[369938177,1751789442088,-841.65,0.00019178,2]
[369938180,1751789442097,-460.0,0.00019178,2]
[369938182,1751789442106,-460.0,0.00019178,2]
[369938183,1751789442116,-460.0,0.00019178,2]
[369938185,1751789442125,-460.0,0.00019178,2]
[369938187,1751789442134,-460.0,0.00019178,2]
[369938189,1751789442144,-460.0,0.00019178,2]
[369938191,1751789442154,-460.0,0.00019178,2]
[369938193,1751789442163,-460.0,0.00019178,2]
[369938195,1751789442172,-460.0,0.00019178,2]
[369938197,1751789442182,-304.70563021,0.00019178,2]
[369938199,1751789442191,-460.0,0.00019178,2]
[369938201,1751789442200,-460.0,0.00019178,2]
[369938203,1751789442209,-460.0,0.00019178,2]
[369938205,1751789442219,-585.77147532,0.00019178,2]
[369938207,1751789442228,-460.0,0.00019178,2]
[369938209,1751789442237,-460.0,0.00019178,2]
[369938211,1751789442246,-460.0,0.00019178,2]
[369938213,1751789442255,-460.0,0.00019178,2]
[369938216,1751789442265,-151.0,0.00019178,2]
[369938218,1751789442275,-151.0,0.00019178,2]
[369938220,1751789442285,-310.69488074,0.00019178,2]
[369938222,1751789442294,-460.0,0.00019178,2]
[369938224,1751789442304,-460.0,0.00019178,2]
[369938226,1751789442313,-460.0,0.00019178,2]
[369938228,1751789442323,-460.0,0.00019178,2]
[369938230,1751789442332,-460.0,0.00019178,2]
[369938232,1751789442343,-460.0,0.00019178,2]
[369938234,1751789442352,-460.0,0.00019178,2]
[369938236,1751789442362,-460.0,0.00019178,2]
[369938238,1751789442371,-460.0,0.00019178,2]
[369938240,1751789442381,-460.0,0.00019178,2]
[369938242,1751789442391,-460.0,0.00019178,2]
[369938244,1751789442401,-460.0,0.00019178,2]
[369938246,1751789442410,-460.0,0.00019178,2]
[369938248,1751789442420,-460.0,0.00019178,2]
[369938250,1751789442429,-460.0,0.00019178,2]
[369938252,1751789442439,-460.0,0.00019178,2]
[369938254,1751789442449,-460.0,0.00019178,2]
[369938256,1751789442459,-460.0,0.00019178,2]
[369938258,1751789442468,-493.27334731,0.00019178,2]
[369938260,1751789442478,-460.0,0.00019178,2]
[369938262,1751789442487,-500.0,0.00019178,2]
[369938264,1751789442496,-12.12770066,0.00019178,2]
[369938267,1751789442520,-487.87229934,0.00019178,2]
[369938269,1751789442530,-53.12720066,0.00019178,2]
[369938350,1751789443388,-1164.0,0.00018674,2]
[369938352,1751789443402,-2627.64368385,0.00019169,2]
[369938354,1751789443411,-446.87279934,0.00019178,2]
[369938356,1751789443421,-509.65,0.00019178,2]
[369938358,1751789443431,-442.11405899,0.00019178,2]
[369938362,1751789443466,-57.88594101,0.00019178,2]
[369938364,1751789443476,-500.0,0.00019178,2]
[369938366,1751789443485,-334.58802398,0.00019178,2]
[369938383,1751789443645,-125.41197602,0.00019178,2]
[369938385,1751789443655,-460.0,0.00019178,2]
[369938387,1751789443664,-500.0,0.00019178,2]
[369938389,1751789443675,-460.0,0.00019178,2]
[369938391,1751789443684,-460.0,0.00019178,2]
[369938393,1751789443694,-460.0,0.00019178,2]
[369938395,1751789443703,-460.0,0.00019178,2]
[369938397,1751789443713,-460.0,0.00019178,2]
[369938399,1751789443722,-460.0,0.00019178,2]
[369938401,1751789443731,-460.0,0.00019178,2]
[369938403,1751789443740,-460.0,0.00019178,2]
[369938405,1751789443749,-460.0,0.00019178,2]
[369938407,1751789443759,-460.0,0.00019178,2]
[369938409,1751789443768,-460.0,0.00019178,2]
[369938411,1751789443777,-460.0,0.00019178,2]
[369938413,1751789443787,-460.0,0.00019178,2]
[369938415,1751789443796,-460.0,0.00019178,2]
[369938417,1751789443805,-460.0,0.00019178,2]
[369938419,1751789443815,-658.44,0.00019178,2]
[369938421,1751789443825,-658.44,0.00019178,2]
[369938423,1751789443835,-658.44,0.00019178,2]
[369938425,1751789443844,-658.44,0.00019178,2]
[369938427,1751789443853,-658.44,0.00019178,2]
[369938429,1751789443863,-460.0,0.00019178,2]
[369938431,1751789443872,-151.0,0.00019178,2]
[369938433,1751789443883,-460.0,0.00019178,2]
[369938435,1751789443892,-853.93,0.00019178,2]
[369938437,1751789443901,-460.0,0.00019178,2]
[369938439,1751789443911,-460.0,0.00019178,2]
[369938441,1751789443920,-460.0,0.00019178,2]
[369938443,1751789443930,-460.0,0.00019178,2]
[369938445,1751789443939,-460.0,0.00019178,2]
[369938447,1751789443948,-460.0,0.00019178,2]
[369938449,1751789443958,-460.0,0.00019178,2]
[369938451,1751789443967,-460.0,0.00019178,2]
[369938453,1751789443977,-460.0,0.00019178,2]
[369938455,1751789443986,-460.0,0.00019178,2]
[369938457,1751789443996,-460.0,0.00019178,2]
[369938459,1751789444005,-460.0,0.00019178,2]
[369938461,1751789444015,-460.0,0.00019178,2]
[369938463,1751789444025,-460.0,0.00019178,2]
[369938465,1751789444035,-460.0,0.00019178,2]
[369938467,1751789444044,-460.0,0.00019178,2]
[369938469,1751789444054,-460.0,0.00019178,2]
[369938471,1751789444063,-460.0,0.00019178,2]
[369938473,1751789444072,-460.0,0.00019178,2]
[369938475,1751789444082,-460.0,0.00019178,2]
[369938477,1751789444091,-460.0,0.00019178,2]
[369938479,1751789444100,-460.0,0.00019178,2]
[369938481,1751789444109,-460.0,0.00019178,2]
[369938483,1751789444119,-460.0,0.00019178,2]
[369938485,1751789444128,-185.38228293,0.00019178,2]
[369938488,1751789444144,-274.61771707,0.00019178,2]
[369938490,1751789444153,-603.96,0.00019178,2]
[369938492,1751789444163,-460.0,0.00019178,2]
[369938494,1751789444173,-460.0,0.00019178,2]
[369938496,1751789444183,-460.0,0.00019178,2]
[369938498,1751789444192,-460.0,0.00019178,2]
[369938500,1751789444201,-15.43746557,0.00019178,2]
[369938503,1751789444222,-444.56253443,0.00019178,2]
[369938505,1751789444231,-460.0,0.00019178,2]
[369938507,1751789444240,-440.68411172,0.00019178,2]
[369938723,1751789446356,-19.31588828,0.00019178,2]
[369938725,1751789446365,-460.0,0.00019178,2]
[369938727,1751789446375,-460.0,0.00019178,2]
[369938729,1751789446384,-460.0,0.00019178,2]
[369938754,1751789446611,-460.0,0.00019178,2]
[369938756,1751789446623,-460.0,0.00019178,2]
[369938758,1751789446634,-460.0,0.00019178,2]
[369938760,1751789446643,-138.65785254,0.00019178,2]
[369938772,1751789446791,-321.34214746,0.00019178,2]
[369938773,1751789446800,-460.0,0.00019178,2]
[369938774,1751789446809,-939.29,0.00019178,2]
[369938775,1751789446819,-460.0,0.00019178,2]
[369938776,1751789446827,-460.0,0.00019178,2]
[369938778,1751789446837,-460.0,0.00019178,2]
[369938780,1751789446846,-460.0,0.00019178,2]
[369938782,1751789446855,-460.0,0.00019178,2]
[369938784,1751789446864,-732.85,0.00019178,2]
[369938786,1751789446874,-460.0,0.00019178,2]
[369938788,1751789446883,-550.0,0.00019178,2]
[369938790,1751789446892,-460.0,0.00019178,2]
[369938792,1751789446901,-235.60226028,0.00019178,2]
[369938795,1751789446913,-224.39773972,0.00019178,2]
[369938797,1751789446922,-460.0,0.00019178,2]
[369938799,1751789446931,-460.0,0.00019178,2]
[369938801,1751789446941,-460.0,0.00019178,2]
[369938803,1751789446950,-460.0,0.00019178,2]
[369938805,1751789446958,-460.0,0.00019178,2]
[369938806,1751789446968,-460.0,0.00019178,2]
[369938808,1751789446977,-460.0,0.00019178,2]
[369938810,1751789446986,-460.0,0.00019178,2]
[369938812,1751789446995,-460.0,0.00019178,2]
[369938814,1751789447004,-460.0,0.00019178,2]
[369938817,1751789447014,-529.11,0.00019178,2]
[369938818,1751789447024,-460.0,0.00019178,2]
[369938821,1751789447033,-599.41406827,0.00019178,2]
[369938823,1751789447042,-460.0,0.00019178,2]
[369938825,1751789447052,-460.0,0.00019178,2]
[369938827,1751789447061,-460.0,0.00019178,2]
[369938828,1751789447070,-460.0,0.00019178,2]
[369938830,1751789447079,-460.0,0.00019178,2]
[369938833,1751789447089,-841.67,0.00019178,2]
[369938834,1751789447098,-460.0,0.00019178,2]
[369938837,1751789447108,-460.0,0.00019178,2]
[369938838,1751789447117,-460.0,0.00019178,2]
[369938840,1751789447126,-460.0,0.00019178,2]
[369938842,1751789447135,-460.0,0.00019178,2]
[369938845,1751789447145,-460.0,0.00019178,2]
[369938846,1751789447154,-623.83,0.00019178,2]
[369938848,1751789447163,-460.0,0.00019178,2]
[369938850,1751789447172,-460.0,0.00019178,2]
[369938852,1751789447182,-460.0,0.00019178,2]
[369938854,1751789447191,-460.0,0.00019178,2]
[369938856,1751789447203,-460.0,0.00019178,2]
[369938858,1751789447212,-517.51365038,0.00019178,2]
[369938860,1751789447222,-460.0,0.00019178,2]
[369938862,1751789447231,-460.0,0.00019178,2]
[369938865,1751789447241,-460.0,0.00019178,2]
[369938867,1751789447250,-460.0,0.00019178,2]
[369938869,1751789447259,-460.0,0.00019178,2]
[369938873,1751789447268,-460.0,0.00019178,2]
[369938875,1751789447277,-460.0,0.00019178,2]
[369938878,1751789447287,-460.0,0.00019178,2]
[369938881,1751789447296,-460.0,0.00019178,2]
[369938883,1751789447305,-460.0,0.00019178,2]
[369938885,1751789447315,-460.0,0.00019178,2]
[369938887,1751789447324,-460.0,0.00019178,2]
[369938889,1751789447334,-460.0,0.00019178,2]
[369938891,1751789447343,-460.0,0.00019178,2]
[369938893,1751789447352,-460.0,0.00019178,2]
[369938895,1751789447361,-460.0,0.00019178,2]
[369938897,1751789447370,-460.0,0.00019178,2]
[369938899,1751789447379,-460.0,0.00019178,2]
[369938901,1751789447390,-460.0,0.00019178,2]
[369938903,1751789447399,-460.0,0.00019178,2]